Cogmind - Beta 14 @@@ ROGUE MODE // 2024.09.13 @ 10:58:18 Player: ZarZap Result: Destroyed by as-66165 with Assembled Heavy Rifle Performance ------------- Evolutions (1) 500 Regions Visited (3) 600 Robots Destroyed (37) 185 Value Destroyed (895) 895 Prototype IDs (0) 0 Alien Tech Used (0) 0 Bonus (38) 38 TOTAL SCORE: 2218 Bonus ------- High Alert Combat Kills 38 Cogmind --------- Core Integrity 0/400 Matter 290/300 Energy 273/275 System Corruption 0% Temperature Cool (1) Movement Walking (260) Ox2 Location -9/Mines Parts ------- > --- POWER (2) -------- Ion Engine Light Ion Engine > --- PROPULSION (2) --- Aluminum Leg > --- UTILITY (3) ------ Medium Storage Unit Visual Processing Unit Targeting Computer > --- WEAPON (2) ------- Beam Cannon Heavy Flail > --- INVENTORY (10) --- Aluminum Leg Sensor Array Improved Propulsion Shielding Improved Propulsion Shielding Peak State ------------ > --- POWER ------------ Light Ion Engine Improved Ion Engine > --- PROPULSION ------- Aluminum Leg Aluminum Leg > --- UTILITY ---------- Medium Storage Unit Visual Processing Unit Targeting Computer > --- WEAPON ----------- Medium Laser Light Cannon > --- INVENTORY -------- Sensor Array Improved Propulsion Shielding Improved Propulsion Shielding Small Laser Beam Cannon Beam Cannon Assault Rifle Heavy Flail [Rating: 12] Favorites ----------- Power Ion Engine Engine Ion Engine Propulsion Aluminum Leg Leg Aluminum Leg Utility Medium Storage Unit Storage Medium Storage Unit Processor Targeting Computer Weapon Beam Cannon Energy Gun Small Laser Energy Cannon Beam Cannon Ballistic Gun Assault Rifle Ballistic Cannon Light Cannon Impact Weapon Heavy Flail Build | -11 -10 -9 -9 ------- Run | Yrd Mat Mat Min Slots Evolved 2 | . . 2 . Power 1 | . . 1 . Propulsion . | . . . . Utility 1 | . . 1 . Weapon . | . . . . Parts Attached 36 | 6 4 21 5 Power 10 | 1 . 8 1 Engine 10 | 1 . 8 1 Core . | . . . . Reactor . | . . . . Propulsion 9 | 2 . 5 2 Treads . | . . . . Leg 9 | 2 . 5 2 Wheel . | . . . . Hover . | . . . . Flight . | . . . . Utility 6 | 1 4 1 . Device . | . . . . Storage 4 | 1 3 . . Processor 2 | . 1 1 . Hackware . | . . . . Protection . | . . . . Artifact . | . . . . Weapon 11 | 2 . 7 2 Energy Gun 3 | 1 . 1 1 Energy Cannon 2 | . . 2 . Ballistic Gun 3 | 1 . 2 . Ballistic Cannon 2 | . . 2 . Launcher . | . . . . Special Weapon . | . . . . Impact Weapon 1 | . . . 1 Slashing Weapon . | . . . . Piercing Weapon . | . . . . Special Melee Weapon . | . . . . Unidentified Prototypes . | . . . . Parts Lost 15 | . . 10 5 Power 5 | . . 4 1 Propulsion 6 | . . 3 3 Utility . | . . . . Weapon 4 | . . 3 1 Highest Loss Streak 3 | . . 2 3 To Critical Strikes 1 | . . . 1 Average Slot Usage (%) 92 | . 94 92 91 Engine 18 | . 14 20 18 Leg 21 | . 28 18 19 Storage 11 | . 13 11 11 Processor 18 | . 9 21 22 Energy Gun 6 | . 14 3 5 Energy Cannon 6 | . . 7 11 Ballistic Gun 5 | . 14 3 . Ballistic Cannon 3 | . . 6 . Peak Build Rating 12 | 6 7 12 12 Average Rating 9 | 4 6 10 11 On Entrance 6 | . 6 7 11 Naked Turns . | . . . . Heaviest Build 27 | 13 18 27 26 Greatest Support 20 | 20 20 20 20 Greatest Overweight (x) 2 | . . 2 2 Average Overweight (x) . | . . 1 1 Largest Inventory Capacity 15 | 8 15 10 10 Average Capacity 9 | 7 9 10 10 Most Carried 10 | 2 7 10 8 Average Carried 5 | . 4 6 5 Final Capacity 10 | 8 10 10 10 Final Carried 8 | 2 7 8 4 Class Distribution -------------------- 52% | Scavenger-Mutant 47% | Mutant Dominant Class ---------------- Mutant | -10/Materials Scavenger-Mutant | -9/Materials Scavenger-Mutant | -9/Mines Resources | -11 -10 -9 -9 ----------- Run | Yrd Mat Mat Min Matter Collected 780 | 172 81 502 25 Remotely . | . . . . Salvage Created 1254 | . 134 1001 119 Parts 80 | . 9 71 . Haulers Intercepted 1 | . 1 . . Recyclers Shooed 6 | . 3 2 1 Parts Field Recycled . | . . . . Retrieved Matter . | . . . . Parts Self-Destructed . | . . . . Prevented . | . . . . Kills | -11 -10 -9 -9 ------- Run | Yrd Mat Mat Min Combat Hostiles Destroyed 34 | . 1 24 9 Melee 4 | . . . 4 Guns 8 | . 1 7 . Cannons 22 | . . 17 5 Classes Destroyed 12 | . 4 6 2 Worker 5 | . 1 4 . Builder 1 | . . 1 . Hauler 1 | . 1 . . Recycler 1 | . . 1 . Watcher 3 | . 1 2 . Swarmer 7 | . . 7 . Grunt 10 | . 1 9 . Brawler 1 | . . 1 . Duelist 1 | . . 1 . Sentry 6 | . . 6 . Demolisher 1 | . . . 1 Assembled 8 | . . . 8 Best Kill Streak 12 | . 2 12 4 Combat Bots Only 6 | . 1 6 4 Max Kills in Single Turn 2 | . 1 2 1 Gunslinging . | . . . . Exploded . | . . . . Melee 1 | . . . 1 Uniques/NPCs Destroyed . | . . . . Combat | -11 -10 -9 -9 -------- Run | Yrd Mat Mat Min Hostile Shots Fired 196 | . 10 155 31 Missed 49 | . 2 39 8 Damage Taken 1918 | . 86 1272 560 Core 414 | . 10 297 107 Absorbed by Shields . | . . . . Core Remaining (%) 98 | 100 96 . . Volleys Fired 107 | . 18 70 19 Largest 2 | . 2 2 2 Hottest 100 | . 60 95 100 Shots Fired 190 | . 36 131 23 Gun 94 | . 36 54 4 Cannon 96 | . . 77 19 Launcher . | . . . . Special . | . . . . Kinetic 86 | . 18 68 . Thermal 104 | . 18 63 23 Explosive . | . . . . Electromagnetic . | . . . . Robot Hit Streak 8 | . 7 6 8 Robot Miss Streak 5 | . 3 5 2 Penetration Max . | . . . . Secondary Targets . | . . . . Shots Hit Robots 119 | . 21 76 22 Core Hits 66 | . 7 45 14 Critical Kills 1 | . . . 1 Critical Parts Destroyed 1 | . . . 1 Critical Strikes 8 | . . 6 2 Burn 4 | . . 4 . Blast 2 | . . 2 . Smash 2 | . . . 2 Melee Attacks 4 | . . . 4 Impact 4 | . . . 4 Slashing . | . . . . Piercing . | . . . . Sneak Attacks . | . . . . Combat Hostiles . | . . . . Follow-up Attacks . | . . . . Damage Inflicted 2163 | . 248 1323 592 Guns 796 | . 248 504 44 Cannons 1060 | . . 813 247 Explosions . | . . . . Melee 297 | . . . 297 Ramming 10 | . . 6 4 Kinetic 840 | . 140 700 . Thermal 1016 | . 108 617 291 Explosive . | . . . . Electromagnetic . | . . . . Impact 297 | . . . 297 Slashing . | . . . . Piercing . | . . . . Highest Corruption . | . . . . Average Corruption . | . . . . Corruption Purged . | . . . . Corruption Blocked . | . . . . Overload Shots . | . . . . Overflow Damage 66 | . . . 66 Projectiles . | . . . . Explosions . | . . . . Melee 66 | . . . 66 Knockbacks 3 | . . 3 . Impact . | . . . . Kinetic 3 | . . 3 . Secondary . | . . . . Self-Inflicted Damage . | . . . . Shots . | . . . . Rammed . | . . . . Targets Rammed 3 | . . 2 1 Kicked 3 | . . 2 1 Crushed . | . . . . Highest Temperature 223 | . 48 223 192 Average Temperature 78 | . 28 87 60 Received Heat Transfer 473 | . 48 345 80 Effects 1 | . . 1 . Energy Bleed 1 | . . 1 . Siege Activations . | . . . . Robots Corrupted . | . . . . Combat Hostiles . | . . . . Parts Fried . | . . . . Impact Corruptions 1 | . . . 1 Robots Melted . | . . . . Combat Hostiles . | . . . . Parts Melted 6 | . 1 5 . Heat Transferred 2718 | . 250 1850 618 Parts Sabotaged . | . . . . Parts Stolen . | . . . . Parts Stripped . | . . . . Power Chain Reactions . | . . . . Alert | -11 -10 -9 -9 ------- Run | Yrd Mat Mat Min Peak Influence 500 | . 61 500 215 Initial 195 | . . 25 195 Average 169 | . 21 249 193 Maximum Alert Level 2 | . . 2 1 Low Security (%) 55 | 100 100 31 54 Level 1 35 | . . 52 45 Level 2 8 | . . 16 . Level 3 . | . . . . Level 4 . | . . . . Level 5 . | . . . . High Security . | . . . . Max Security . | . . . . Squads Dispatched 2 | . 1 1 . Investigation 1 | . 1 . . Extermination . | . . . . Reinforcement 1 | . . 1 . Assault . | . . . . Garrison . | . . . . Intercept . | . . . . Searches Triggered . | . . . . Construction Impeded . | . . . . Haulers Reinforced . | . . . . Active Scanning Responses . | . . . . Cargo Convoy Interrupts . | . . . . Stealth | -11 -10 -9 -9 --------- Run | Yrd Mat Mat Min Distress Signals 4 | . . 4 . Communications Jammed . | . . . . Distress Signals . | . . . . Times Spotted 47 | . 2 34 11 Peak Tracking Total 6 | . 1 6 3 Tactical Retreats 2 | . . 2 . Traps | -11 -10 -9 -9 ------- Run | Yrd Mat Mat Min Traps Triggered 1 | . . 1 . Indirectly . | . . . . Trap Hack Attempts . | . . . . Triggered . | . . . . Disarmed . | . . . . Reprogrammed . | . . . . Reused . | . . . . Traps Extracted . | . . . . Installed . | . . . . Triggered . | . . . . Machines | -11 -10 -9 -9 ---------- Run | Yrd Mat Mat Min Machines Disabled . | . . . . Max in Single Turn . | . . . . Machines Repaired . | . . . . Machines Dismantled . | . . . . Machines Sabotaged . | . . . . Overloaded Fab Kills . | . . . . Hacking | -11 -10 -9 -9 --------- Run | Yrd Mat Mat Min Machines Accessed 3 | . 2 1 . Terminals 3 | . 2 1 . Fabricators . | . . . . Repair Stations . | . . . . Recycling Units . | . . . . Scanalyzers . | . . . . Garrison Access . | . . . . Total Hacks 6 | . 4 2 . Successful 3 | . 3 . . Failed 3 | . 1 2 . Catastrophic . | . . . . Database Lockouts . | . . . . Manual . | . . . . Terminals 6 | . 4 2 . Fabricators . | . . . . Repair Stations . | . . . . Recycling Units . | . . . . Scanalyzers . | . . . . Garrison Access . | . . . . Terminal Hacks 3 | . 3 . . Record 1 | . 1 . . Locate Traps 1 | . 1 . . Transport Status 1 | . 1 . . Fabricator Hacks . | . . . . Repair Station Hacks . | . . . . Recycling Unit Hacks . | . . . . Scanalyzer . | . . . . Garrison Access Hacks . | . . . . Unauthorized Hacks . | . . . . Terminals . | . . . . Fabricators . | . . . . Repair Stations . | . . . . Recycling Units . | . . . . Scanalyzers . | . . . . Garrison Access . | . . . . Data Cores Recovered . | . . . . Used . | . . . . Hacking Detections 2 | . 1 1 . Full Trace Events 1 | . 1 . . Feedback Events . | . . . . Feedback Blocked . | . . . . Robot Schematics Acquired . | . . . . Robots Built . | . . . . Authchips . | . . . . Time . | . . . . Total Robot Build Rating . | . . . . Part Schematics Acquired . | . . . . Parts Built . | . . . . Authchips . | . . . . Time . | . . . . Total Part Build Rating . | . . . . Parts Repaired . | . . . . Time . | . . . . Parts Recycled . | . . . . Recycled Matter . | . . . . Retrieved Matter . | . . . . Retrieved Components . | . . . . Parts Scanalyzed . | . . . . Part Schematics Acquired . | . . . . Parts Damaged . | . . . . Bothacking | -11 -10 -9 -9 ------------ Run | Yrd Mat Mat Min Used RIF Installer . | . . . . Robots Hacked . | . . . . Non-combat . | . . . . Combat . | . . . . Robot Hacks Applied . | . . . . Relay Couplers Released . | . . . . Fabnet Peak Effective % . | . . . . Robots Rewired . | . . . . Allies Hacked . | . . . . Hacks Repelled . | . . . . Allies | -11 -10 -9 -9 -------- Run | Yrd Mat Mat Min Total Allies . | . . . . Largest Group . | . . . . Highest-Rated Group . | . . . . Highest-Rated Ally . | . . . . Total Orders . | . . . . Ally Attacks . | . . . . Total Damage . | . . . . Kills . | . . . . Allies Corrupted . | . . . . Allies Melted . | . . . . Intel | -11 -10 -9 -9 ------- Run | Yrd Mat Mat Min Robot Analysis Total . | . . . . Derelict Logs Recovered . | . . . . Drone Launches . | . . . . Drone Recoveries . | . . . . Exploration | -11 -10 -9 -9 ------------- Run | Yrd Mat Mat Min Turns Passed 1279 | 70 311 666 232 Spaces Moved 558 | 53 204 216 85 Core 6 | 6 . . . Treads . | . . . . Legs 552 | 47 204 216 85 Wheels . | . . . . Hover . | . . . . Flight . | . . . . Fastest Speed 50 | 50 120 120 190 Average Speed 159 | 112 120 192 198 Slowest Speed 260 | 120 120 260 260 Overloaded Moves . | . . . . Propulsion Burnouts . | . . . . Robots Hopped . | . . . . Cave-ins Triggered . | . . . . Exploration Rate (%) 18 | 3 23 31 15 Regions Visited 3 Branch Regions 1 Pre-discovered Areas . | . . . . Known Exits Taken . | . . . . Unknown Exits Taken 3 | 1 1 1 . Scrap Searched . | . . . . Spaces Dug . | . . . . Terrain Destroyed . | . . . . Melee . | . . . . Projectile . | . . . . AOE . | . . . . Terrain Rammed . | . . . . Walls Destroyed . | . . . . Machines Disabled . | . . . . Actions | -11 -10 -9 -9 --------- Run | Yrd Mat Mat Min Total 739 | 60 233 326 120 Wait 14 | . . 8 6 Move 555 | 52 203 215 85 Hop . | . . . . Pick Up 13 | 2 5 6 . Fast Attach 20 | 6 4 9 1 Attach 8 | . . 4 4 Detach . | . . . . Swap 8 | . . 8 . Drop 7 | . 3 4 . Fire 107 | . 18 70 19 Melee 4 | . . . 4 Ram . | . . . . Kick 3 | . . 2 1 Crush . | . . . . Escape Stasis . | . . . . Rewire . | . . . . Trap . | . . . . Miscellaneous . | . . . . Route ------- -11/Scrapyard -10/Materials -9/Materials -9/Mines History --------- Turn | Location | Event 3 | -11/Scrapyard | Discovered new exit (range 15) 71 | -11/Scrapyard | Entered Materials 301 | -10/Materials | Build established: Mutant 364 | -10/Materials | Discovered new exit (range 16) 382 | -10/Materials | Entered another Materials area 382 | -9/Materials | Evolved 2 slots: Power x1, Utility x1 822 | -9/Materials | Core integrity fell below 50% 999 | -9/Materials | Discovered new exit (range 17) 1048 | -9/Materials | Entered Mines 1049 | -9/Mines | Assembled infested the area 1072 | -9/Mines | Core integrity fell below 20% 1158 | -9/Mines | Build established: Scavenger-Mutant 1232 | -9/Mines | Lost 3 parts (1p1n1w) 1280 | -9/Mines | Destroyed by as-66165 with Assembled Heavy Rifle Last Messages --------------- 01195_ Imp. Ion Engine destroyed. 01201_ Aluminum Leg destroyed. 01201_ as-24969 destroyed. 01202_ Knocked back. 01205_ as-49103 destroyed. 01207_ as-88990 destroyed. 01209_ Acquired 11 matter. 01214_ Acquired 4 matter. 01225_ as-72134 destroyed. 01228_ Acquired 10 matter. 01249_ as-47369 destroyed. 01250_ Aluminum Leg destroyed. 01251_ as-69043 destroyed. 01260_ as-92748 suffers critical hit (Smash). 01260_ as-92748 destroyed. 01263_ as-08145 suffers critical hit (Smash). 01263_ Destroyed Asb. Rifle. 01263_ as-08145 system corrupted by crushing effect. 01263_ as-08145 destroyed. 01270_ Acquired Lgt. Ion Engine. Map ----- +----------------------------------------------------+ | ?????????????????????????????????????????????????? | | ?????????????????????????????????????????????????? | | ?????????????????????????????????????????????????? | | ????????????????????????????????????????????####?? | | ????????????????????????????????????????????# #?? | | ???????????????????????????????????????????## #?? | | ??????????????????????????????????????????## #?? | | ??????????????????????????????????????????# ##? | | ?????????????????????????????##???????????# ## | | ?????????????????????????????# ?????????## | | ?????????????????????????????# ?????????# | | ??????????????????????????????# ?####???# ## | | ??????????????????????????????# ## ##??# ###? | | ?????????????????????????????## ##?## ##??? | | ?????????????????????????????# #### #???? | | ?????????????????????????????# ## #???? | | ?????????????????????????????# ##???? | | ?????????????????????????????## ### ##????? | | ??????????????????????????????#######?## ##?????? | | ???????????????????????????????????????# ##??????? | | ????????????????????????????????????#### #???????? | | ????????????????????????????????????# #???????? | | ????????????????????????????????????# ####???????? | | ????????????????????????????????????# #??????????? | | ???????????????????????##############%#??????????? | | ???????????????????????#a@*%% r % % #??????????? | | ???????????????????????# ##############??????????? | | ???????????????????????#%#???????????????????????? | | ???????????????????????%!$???????????????????????? | | ??????????????????????####???????????????????????? | | ?????????????????????????????????????????????????? | | ?????????????????????????????????????????????????? | | ?????????????????????????????????????????????????? | | ?????????????????????????????????????????????????? | | ?????????????????????????????????????????????????? | | ?????????????????????????????????????????????????? | | ?????????????????????????????????????????????????? | | ?????????????????????????????????????????????????? | | ?????????????????????????????????????????????????? | | ?????????????????????????????????????????????????? | | ?????????????????????????????????????????????????? | | ?????????????????????????????????????????????????? | | ?????????????????????????????????????????????????? | | ?????????????????????????????????????????????????? | | ?????????????????????????????????????????????????? | | ?????????????????????????????????????????????????? | | ?????????????????????????????????????????????????? | | ?????????????????????????????????????????????????? | | ?????????????????????????????????????????????????? | | ?????????????????????????????????????????????????? | +----------------------------------------------------+ Best States ------------- Heat Dissipation 28 Energy Generation 17 Energy Capacity 415 Matter Stores 300 Matter Capacity 300 Sight Range 18 Terrain Scan Density 10 Evasion (%) 55 Targeting Accuracy 5 Item Schematics ----------------- None Robot Schematics ------------------ None Fabricated ------------ Nothing Alien Tech Used ----------------- None Achievements -------------- None Challenges ------------ None Game ------ Seed CloakVortexBattery Manual? 0 Play Time 00:15:04 Cumulative 9.0 hours Start 2024.09.12 @ 14:51:53 End 2024.09.13 @ 10:58:18 Sessions 2 Manual Loads 0 Difficulty Rogue Special Mode None Game No. 42 Rogue 42 Adventurer 0 Explorer 0 Win Type - Total 0 Types 0/0/0/0/0/0/0/0/0 Lore% 5 Gallery% 16 Achievement% 12 Wizard Run 0 Options --------- Layout 2 ASCII 0 Keyboard 0 Movement Mouse Keybinds 0 Fullscreen 1 Font 16/SmallcapsGlow Map View 55x47 Zoom Use 0% Tactical HUD 1 Map Filters NONE Filters NONE Steam 1 RUN: d6fa5b5f-f7d1-456c-a1cd-520d6b6dde45